Cogmind - Beta 15 --- EXPLORER MODE // 2025.10.19 @ 06:18:57 Player: time Result: Destroyed by Q8-PJQ(R) with Subdweller Shrapnel Launcher Performance ------------- Evolutions (0) 0 Regions Visited (3) 600 Robots Destroyed (15) 75 Value Destroyed (471) 471 Prototype IDs (0) 0 Alien Tech Used (0) 0 Bonus (0) 0 TOTAL SCORE: 1146 Bonus ------- None Cogmind --------- Core Integrity 0/250 Matter 294/300 Energy 248/250 System Corruption 0% Temperature Cool (0) Movement Walking (190) Ox1 Location -10/Subcaves Parts ------- > --- POWER (1) -------- Ion Engine > --- PROPULSION (2) --- Aluminum Leg Aluminum Leg > --- UTILITY (3) ------ Large Storage Unit Sensor Array Makeshift System Shield > --- WEAPON (2) ------- Riot Gun Subdweller Machine Gun > --- INVENTORY (15) --- Aluminum Leg Aluminum Leg Subdweller Monowheel Seismic Detector ECM Suite Utility Shielding Small Laser Subdweller Laser Subdweller Laser Battle Cannon Mining Laser Peak State ------------ > --- POWER ------------ Ion Engine > --- PROPULSION ------- Aluminum Leg Aluminum Leg > --- UTILITY ---------- Large Storage Unit Sensor Array Utility Shielding > --- WEAPON ----------- Particle Gun Light Assault Rifle > --- INVENTORY -------- SUBCON Basin [Rating: 27] Favorites ----------- Power Light Ion Engine Engine Light Ion Engine Power Core Light Nuclear Core Propulsion Aluminum Leg Treads Light Treads Leg Aluminum Leg Utility Seismic Detector Device Seismic Detector Storage Medium Storage Unit Hackware Makeshift System Shield Protection Utility Shielding Weapon Light Assault Rifle Energy Gun Medium Laser Ballistic Gun Light Assault Rifle Ballistic Cannon Battle Cannon Special Weapon Mining Laser Build | -11 -10 -10 -10 ------- Run | Yrd Mat Min Sub Slots Evolved 1 | . 1 . . Power . | . . . . Propulsion . | . . . . Utility 1 | . 1 . . Weapon . | . . . . Parts Attached 28 | 7 8 1 12 Power 5 | 1 1 . 3 Engine 4 | 1 1 . 2 Core 1 | . . . 1 Reactor . | . . . . Propulsion 7 | 2 2 1 2 Treads 2 | . 2 . . Leg 5 | 2 . 1 2 Wheel . | . . . . Hover . | . . . . Flight . | . . . . Utility 7 | 2 4 . 1 Device 3 | 1 2 . . Storage 2 | 1 1 . . Processor . | . . . . Hackware 1 | . . . 1 Protection 1 | . 1 . . Artifact . | . . . . Weapon 9 | 2 1 . 6 Energy Gun 5 | 1 1 . 3 Energy Cannon . | . . . . Ballistic Gun 2 | 1 . . 1 Ballistic Cannon 1 | . . . 1 Launcher . | . . . . Special Weapon 1 | . . . 1 Impact Weapon . | . . . . Slashing Weapon . | . . . . Piercing Weapon . | . . . . Special Melee Weapon . | . . . . Unidentified Prototypes . | . . . . Parts Lost 8 | . . . 8 Power 2 | . . . 2 Propulsion 2 | . . . 2 Utility . | . . . . Weapon 4 | . . . 4 Highest Loss Streak 3 | . . . 3 To Critical Strikes . | . . . . Average Backups 5 | 3 7 11 8 Power 1 | . 1 2 . Propulsion 2 | 1 3 4 2 Utility . | . . 2 2 Weapon 1 | . 1 2 2 Tool/Special . | . . . . Unused Backups 5 | . . . 5 Power . | . . . . Propulsion 1 | . . . 1 Utility 3 | . . . 3 Weapon 1 | . . . 1 Tool/Special . | . . . . Average Slot Usage (%) 97 | . 92 100 98 Engine 10 | . 12 12 10 Treads 2 | . 16 . . Leg 21 | . 8 25 23 Device 15 | . 14 12 16 Storage 11 | . 11 12 12 Hackware 1 | . . . 2 Protection 6 | . 2 12 5 Energy Gun 13 | . 12 12 13 Ballistic Gun 9 | . 12 12 8 Peak Build Rating 27 | 7 10 10 27 Average Rating 8 | 6 8 10 13 On Entrance 6 | . 7 10 10 Naked Turns . | . . . . Heaviest Build 36 | 17 32 31 36 Greatest Support 40 | 20 40 20 20 Greatest Overweight (x) 2 | 1 1 1 2 Average Overweight (x) . | . . 1 1 Largest Inventory Capacity 15 | 10 15 15 15 Average Capacity 11 | 9 14 15 15 Most Carried 15 | 4 10 13 15 Average Carried 6 | 3 7 11 9 Final Capacity 15 | 10 15 15 15 Final Carried 12 | 4 10 12 11 Class Distribution -------------------- 100% | Hacker-Mutant Dominant Class ---------------- Hacker-Mutant | -10/Materials Hacker-Mutant | -10/Mines Hacker-Mutant | -10/Subcaves Resources | -11 -10 -10 -10 ----------- Run | Yrd Mat Min Sub Matter Collected 690 | 246 95 81 268 Remotely . | . . . . Salvage Created 542 | 30 179 93 240 Parts 28 | 2 11 6 9 Haulers Intercepted 1 | . 1 . . Recyclers Shooed 1 | . 1 . . Parts Field Recycled . | . . . . Retrieved Matter . | . . . . Parts Self-Destructed . | . . . . Prevented . | . . . . Kills | -11 -10 -10 -10 ------- Run | Yrd Mat Min Sub Combat Hostiles Destroyed 13 | . 4 2 7 Guns 12 | . 4 2 6 Cannons 1 | . . . 1 Classes Destroyed 5 | 1 3 . 1 Tunneler 1 | 1 . . . Hauler 1 | . 1 . . Swarmer 2 | . 2 . . Grunt 4 | . 2 2 . Subdweller 7 | . . . 7 Best Kill Streak 2 | 1 2 2 2 Combat Bots Only 2 | . 2 2 2 Max Kills in Single Turn 1 | 1 1 1 1 Gunslinging . | . . . . Exploded . | . . . . Melee . | . . . . Uniques/NPCs Destroyed . | . . . . Combat | -11 -10 -10 -10 -------- Run | Yrd Mat Min Sub Hostile Shots Fired 157 | . 42 4 111 Missed 46 | . 14 1 31 Hits 111 | . 28 3 80 Projectile 111 | . 28 3 80 AOE 2 | . . . 2 Critical Strikes 4 | . . . 4 Damage Taken 1310 | . 202 30 1078 Core 257 | . 32 . 225 Absorbed by Shields . | . . . . Redirected to Shielding 15 | . 2 6 7 Ignored by Resistances 784 | . 129 18 637 Core Remaining (%) 100 | 100 . . . Volleys Fired 77 | 2 17 3 55 Largest 2 | 2 2 2 2 Hottest 90 | 70 85 85 90 Shots Fired 129 | 4 34 6 85 Gun 115 | 4 34 6 71 Cannon 14 | . . . 14 Launcher . | . . . . Special . | . . . . Kinetic 67 | 2 17 3 45 Thermal 53 | 2 17 3 31 Explosive . | . . . . Electromagnetic 9 | . . . 9 Robot Hit Streak 31 | 4 21 7 31 Robot Miss Streak 1 | . 1 . 1 Penetration Max . | . . . . Secondary Targets 1 | . 1 . . Max Gunslinging Chain 1 | . 1 . . Shots Hit Robots 116 | 4 29 6 77 Core Hits 36 | 1 9 5 21 Critical Kills . | . . . . Critical Parts Destroyed . | . . . . Critical Strikes 5 | . 2 1 2 Burn 3 | . 2 1 . Destroy 2 | . . . 2 Melee Attacks . | . . . . Impact . | . . . . Slashing . | . . . . Piercing . | . . . . Sneak Attacks . | . . . . Combat Hostiles . | . . . . Follow-up Attacks . | . . . . Damage Inflicted 1498 | 42 296 69 1091 Guns 1204 | 42 296 69 797 Cannons 289 | . . . 289 Explosions . | . . . . Melee . | . . . . Ramming 5 | . . . 5 Kinetic 757 | 18 126 23 590 Thermal 572 | 24 170 46 332 Explosive . | . . . . Electromagnetic 164 | . . . 164 Impact . | . . . . Slashing . | . . . . Piercing . | . . . . Highest Corruption . | . . . . Average Corruption . | . . . . Corruption Purged . | . . . . Corruption Blocked . | . . . . Overload Shots . | . . . . Overflow Damage . | . . . . Projectiles . | . . . . Explosions . | . . . . Melee . | . . . . Knockbacks 4 | . . . 4 Impact . | . . . . Kinetic 3 | . . . 3 Secondary 1 | . . . 1 Self-Inflicted Damage . | . . . . Shots . | . . . . Rammed . | . . . . Targets Rammed 1 | . . . 1 Kicked 1 | . . . 1 Crushed . | . . . . Highest Temperature 234 | 40 234 130 16 Average Temperature 84 | 20 97 73 7 Received Heat Transfer 543 | . 168 27 348 Siege Activations . | . . . . Martial Activations . | . . . . Shielding Activations . | . . . . Robots Disrupted . | . . . . Combat Hostiles . | . . . . Robots Corrupted . | . . . . Combat Hostiles . | . . . . Parts Fried 1 | . . . 1 Impact Corruptions . | . . . . Robots Melted . | . . . . Combat Hostiles . | . . . . Parts Melted 1 | . . . 1 Heat Transferred 1609 | 74 592 185 758 Parts Sabotaged . | . . . . Parts Stolen . | . . . . Parts Stripped . | . . . . Power Chain Reactions . | . . . . Alert | -11 -10 -10 -10 ------- Run | Yrd Mat Min Sub Maximum Alert Level . | . . . . Low Security (%) 100 | 100 100 100 . Level 1 . | . . . . Level 2 . | . . . . Level 3 . | . . . . Level 4 . | . . . . Level 5 . | . . . . High Security . | . . . . Max Security . | . . . . Peak Influence 51 | 5 51 35 . Initial 1 | . . 1 . Average . | . 9 1 . Influence Increases 166 | 5 111 50 . Destroy 0b10 Robot/C 120 | . 80 40 . Destroy 0b10 Robot/NC 10 | 5 5 . . Destroy Leader 32 | . 22 10 . Successful Hack 3 | . 3 . . Destroy Structure 1 | . 1 . . Influence Decreases 166 | 5 105 56 . Entered New Map 5 | . . 5 . Time Decay 161 | 5 105 51 . Squads Dispatched . | . . . . Investigation . | . . . . Extermination . | . . . . Reinforcement . | . . . . Assault . | . . . . Garrison . | . . . . Intercept . | . . . . Searches Triggered . | . . . . Construction Impeded . | . . . . Haulers Reinforced . | . . . . Active Scanning Responses . | . . . . Cargo Convoy Interrupts . | . . . . Stealth | -11 -10 -10 -10 --------- Run | Yrd Mat Min Sub Distress Signals . | . . . . Communications Jammed . | . . . . Distress Signals . | . . . . Times Spotted 18 | . 6 2 10 Peak Tracking Total 3 | . 2 1 3 Tactical Retreats 1 | . . . 1 Traps | -11 -10 -10 -10 ------- Run | Yrd Mat Min Sub Traps Triggered . | . . . . Indirectly . | . . . . Trap Hack Attempts . | . . . . Triggered . | . . . . Disarmed . | . . . . Reprogrammed . | . . . . Reused . | . . . . Traps Extracted . | . . . . Installed . | . . . . Triggered . | . . . . Machines | -11 -10 -10 -10 ---------- Run | Yrd Mat Min Sub Machines Disabled . | . . . . Max in Single Turn . | . . . . Machines Repaired . | . . . . Machines Dismantled . | . . . . Machines Sabotaged . | . . . . Overloaded Fab Kills . | . . . . Hacking | -11 -10 -10 -10 --------- Run | Yrd Mat Min Sub Machines Accessed 3 | . 1 . 2 Terminals 1 | . 1 . . Fabricators . | . . . . Repair Stations . | . . . . Recycling Units . | . . . . Scanalyzers . | . . . . Garrison Access . | . . . . Total Hacks 5 | . 2 . 3 Successful 4 | . 1 . 3 Failed 1 | . 1 . . Catastrophic 1 | . 1 . . Database Lockouts . | . . . . Manual 2 | . 2 . . Terminals 2 | . 2 . . Fabricators . | . . . . Repair Stations . | . . . . Recycling Units . | . . . . Scanalyzers . | . . . . Garrison Access . | . . . . Terminal Hacks 3 | . . . 3 Record 1 | . . . 1 Open Door 1 | . . . 1 Release Object 1 | . . . 1 Fabricator Hacks . | . . . . Repair Station Hacks . | . . . . Recycling Unit Hacks . | . . . . Scanalyzer . | . . . . Garrison Access Hacks . | . . . . Unauthorized Hacks 1 | . 1 . . Terminals 1 | . 1 . . Botnet 1 | . 1 . . Fabricators . | . . . . Repair Stations . | . . . . Recycling Units . | . . . . Scanalyzers . | . . . . Garrison Access . | . . . . Data Cores Recovered . | . . . . Used . | . . . . Hacking Detections 1 | . 1 . . Full Trace Events . | . . . . Feedback Events . | . . . . Feedback Blocked . | . . . . Robot Schematics Acquired . | . . . . Robots Built . | . . . . Authchips . | . . . . Time . | . . . . Total Robot Build Rating . | . . . . Part Schematics Acquired . | . . . . Parts Built . | . . . . Authchips . | . . . . Time . | . . . . Total Part Build Rating . | . . . . Parts Repaired . | . . . . Time . | . . . . Parts Recycled . | . . . . Recycled Matter . | . . . . Retrieved Matter . | . . . . Retrieved Components . | . . . . Parts Scanalyzed . | . . . . Part Schematics Acquired . | . . . . Parts Damaged . | . . . . Bothacking | -11 -10 -10 -10 ------------ Run | Yrd Mat Min Sub Used RIF Installer . | . . . . Robots Hacked . | . . . . Non-combat . | . . . . Combat . | . . . . Robot Hacks Applied . | . . . . Relay Couplers Released . | . . . . Fabnet Peak Effective % . | . . . . Robots Rewired . | . . . . Allies Hacked . | . . . . Hacks Repelled . | . . . . Allies | -11 -10 -10 -10 -------- Run | Yrd Mat Min Sub Total Allies 1 | . . 1 . Largest Group 1 | . . 1 . Highest-Rated Group 31 | . . 31 . Highest-Rated Ally 31 | . . 31 . Total Orders . | . . . . Ally Attacks . | . . . . Total Damage . | . . . . Kills . | . . . . Allies Corrupted . | . . . . Allies Melted . | . . . . Intel | -11 -10 -10 -10 ------- Run | Yrd Mat Min Sub Active Infowar (turns) 6505 | 3867 387 663 1588 Sensors 2329 | . 78 663 1588 Seismic 4226 | 3867 312 . 47 ECM 572 | . 84 . 488 Robot Analysis Total . | . . . . Derelict Logs Recovered . | . . . . Drone Launches . | . . . . Drone Recoveries . | . . . . Exploration | -11 -10 -10 -10 ------------- Run | Yrd Mat Min Sub Turns Passed 6554 | 3916 387 663 1588 Spaces Moved 2510 | 1276 203 340 691 Core 5 | 5 . . . Treads 140 | . 129 . 11 Legs 2365 | 1271 74 340 680 Wheels . | . . . . Hover . | . . . . Flight . | . . . . Fastest Speed 50 | 50 120 190 190 Average Speed 152 | 119 156 190 191 Slowest Speed 260 | 120 190 190 260 Overloaded Moves . | . . . . Propulsion Burnouts . | . . . . Robots Hopped . | . . . . Potential Cave-ins . | . . . . Cave-ins Triggered . | . . . . Exploration Rate (%) 57 | 97 36 65 32 Regions Visited 3 Branch Regions 2 Pre-discovered Areas . | . . . . Known Exits Taken 3 | 1 1 1 . Unknown Exits Taken . | . . . . Scrap Searched 3 | . . 1 2 Spaces Dug . | . . . . Terrain Destroyed . | . . . . Melee . | . . . . Projectile . | . . . . AOE . | . . . . Terrain Rammed . | . . . . Walls Destroyed . | . . . . Machines Disabled . | . . . . Actions | -11 -10 -10 -10 --------- Run | Yrd Mat Min Sub Total 5129 | 3656 241 352 880 Wait 2442 | 2368 . 5 69 Move 2507 | 1275 202 339 691 Hop . | . . . . Pick Up 28 | 4 3 2 19 Fast Attach 17 | 7 4 . 6 Attach 11 | . 3 . 8 Detach 12 | . 6 . 6 Swap 12 | . 5 1 6 Drop 20 | . 1 1 18 Fire 77 | 2 17 3 55 Melee . | . . . . Ram . | . . . . Kick 1 | . . . 1 Crush . | . . . . Escape Stasis . | . . . . Rewire 1 | . . 1 . Trap . | . . . . Miscellaneous 1 | . . . 1 Route ------- -11/Scrapyard -10/Materials -10/Mines (discovered 3 exits: *Mat x2 / *Sub) -10/Subcaves History --------- Turn | Location | Event 19 | -11/Scrapyard | Identified exit to Materials 19 | -11/Scrapyard | Discovered exit to Materials (range 15) 3917 | -11/Scrapyard | Entered Materials 3917 | -10/Materials | Evolved 1 slot: Utility x1 3918 | -10/Materials | Build established: Hacker-Mutant 4064 | -10/Materials | Identified exit to Mines 4064 | -10/Materials | Discovered exit to Mines (range 6) 4304 | -10/Materials | Entered Mines 4316 | -10/Mines | Identified exit to Materials 4316 | -10/Mines | Discovered exit to Materials (range 4) 4335 | -10/Mines | Identified exit to Subcaves 4335 | -10/Mines | Discovered exit to Subcaves (range 7) 4344 | -10/Mines | Met a Derelict bent on vengeance 4361 | -10/Mines | Received a Mining Laser from a helpful Derelict 4511 | -10/Mines | Discovered exit to Materials (range 9) 4774 | -10/Mines | Assembled infested the area 4967 | -10/Mines | Entered Subcaves 4968 | -10/Subcaves | Approached by a straggling Scientist 5152 | -10/Subcaves | Found SUBCON Basin 5259 | -10/Subcaves | Shifting Twisted Machinery released Piercing Trap 5282 | -10/Subcaves | Shifting Twisted Machinery released Sub. Machine Gun 5309 | -10/Subcaves | Released subatomizers from SUBCON Basin 5352 | -10/Subcaves | Core integrity fell below 50% 5647 | -10/Subcaves | Core integrity fell below 20% 5681 | -10/Subcaves | Lost 3 parts (1n2w) 5868 | -10/Subcaves | A swath of the cavern ceiling suddenly collapsed 6261 | -10/Subcaves | Disturbed a concealed Subdweller 6500 | -10/Subcaves | Shifting Twisted Machinery released Battle Cannon 6555 | -10/Subcaves | Destroyed by Q8-PJQ(R) with Subdweller Shrapnel Launcher Last Messages --------------- 06255_ Found Shrapnel Trap. 06255_ Found 46 Matter. 06256_ Acquired 46 matter. 06257_ Searching scrap... 06257_ Found Mak. System Shield. 06257_ Found 65 Matter. 06258_ Acquired 23 matter. 06261_ 2X-N87(R) angrily emerges from the Twisted Machinery. 06262_ Acquired Mak. System Shield. 06278_ Disposable Heat Sink fried. 06278_ 2X-N87(R) destroyed. 06281_ Acquired 18 matter. 06284_ Subatomizers dissect the Corrupted Sub. Laser. 06300_ Dropped Broken Sub. Power Source. 06461_ SY-6UU(u) tweaks Twisted Machinery. 06472_ 5U-HXE(R) destroyed. 06487_ Acquired 4 matter. Battle Cannon falls loose from the Twisted Machinery. 06515_ Acquired Battle Cannon. 06516_ Dropped Machine Analyzer. Map ----- +----------------------------------------------------+ | ?####### #####?## #??## " #????????????????? | | ???????####??????#######???# ##???????????????? | | ???????????????????????????## #???????????????? | | ???????????????????????????## ! #???????????????? | | ???????????????????????????# %[##???????????????? | | ???????????????????????????## #????????????????? | | ????????????????????????????# ##????????????????? | | ???????????????????????????## ##????????????????? | | ???????????????????????????# #????????????????? | | ???????????????????????????# #????????????????? | | ???????????????????????????# #????????????????? | | ???????????????????????????## #????????????????? | | ????????????????????????????# #????????????????? | | ??????????????????????????### ##???????????????? | | ?????????????????????????## #???????????????? | | ??????????????????????#### ##??????????????? | | ?????????????????###??# ###????????????? | | ????????????????## #?## #????????????? | | ????????????????# ### ! #????????????? | | ?????????????????# "" """ ### #????????????? | | ?????????????????##"""" ## ###?#####????????????? | | ??????????????????##" #; #;#??????????????????? | | ???????????????????#" ##??????????????????? | | ???????????????????#" ;???????????????????? | | ???????????????????# ##???????????????????? | | ???????????????????# @;;#????????????????????? | | ???????????????????# ;;#????????????????????? | | ???????? ###R ;#????????????????????? | | ???????? ##????????????????????? | | ???????? ;;#;#?????????????????????? | | ?????????? ### R###?##?????????????????????? | | ?????????????# R ???????????????????????????? | | ?????????????# ???????????????????????????? | | ?????????????# # ???????????????????????????? | | ????????????# ### ????????????????????????????? | | ???????????# ??# ????????????????????????????? | | ???????????## ??? ?????????????????????????????? | | ????????????# ??????????????????????????????????? | | ???????????? ????????????????????????????????????? | | ?????????????????????????????????????????????????? | | ?????????????????????????????????????????????????? | | ?????????????????????????????????????????????????? | | ?????????????????????????????????????????????????? | | ?????????????????????????????????????????????????? | | ?????????????????????????????????????????????????? | | ?????????????????????????????????????????????????? | | ?????????????????????????????????????????????????? | | ?????????????????????????????????????????????????? | | ?????????????????????????????????????????????????? | | ?????????????????????????????????????????????????? | +----------------------------------------------------+ Best States ------------- Heat Dissipation 25 Energy Generation 15 Energy Capacity 250 Matter Stores 300 Matter Capacity 300 Sight Range 16 Robot Scan Range 14 Terrain Scan Density 10 ECM Strength 1 Resistance: KI 35 Resistance: TH 35 Resistance: EX 35 Resistance: EM 35 Resistance: I 35 Resistance: S 35 Resistance: P 35 Utility Shielding 33 Evasion (%) 55 Recoil Reduction 2 Offensive Hacking 20 Defensive Hacking 11 Item Schematics ----------------- None Robot Schematics ------------------ None Fabricated ------------ Nothing Repaired ---------- Nothing Alien Tech Used ----------------- None Achievements -------------- None Challenges ------------ None Game ------ Seed BiocellBoreShearcannon Manual? 0 Play Time 00:29:29 Cumulative 19.4 hours Start 2025.10.19 @ 05:54:44 End 2025.10.19 @ 06:18:57 Sessions 1 Manual Loads 0 Difficulty Explorer Special Mode None Game No. 33 Rogue 12 Adventurer 18 Explorer 3 Win Type - Total 0 Types 0/0/0/0/0/0/0/0/0/0 Lore% 13 Gallery% 32 Achievement% 30 Wizard Run 0 Options --------- Layout 0 ASCII 0 Keyboard 1 Movement Numpad Keybinds 0 Fullscreen 1 Font 18/X11 Map View 38x25 Zoom Use 26% Tactical HUD 1 Map Filters NONE Filters NONE Steam 1 RUN: 1fa731e1-741a-40b2-a276-6e81cdf79380